bitfinex/quotes_SOLUSD_20251231
["timestamp","ask_amount","ask_price","bid_price","bid_amount"]
[1767211280431,0.72160866,124.56,124.52,5.69170221]
[1767211281243,0.72160866,124.56,124.53,0.65264346]
[1767211282953,5.03905875,124.56,124.52,5.69170221]
[1767211283157,0.72160866,124.55,124.52,5.69170221]
[1767211284755,5.76066741,124.56,124.53,0.65264346]
[1767211286154,0.72160866,124.56,124.53,5.69170221]
[1767211288358,14.68,124.58,124.53,5.69170221]
[1767211288571,15.0,124.62,124.57,0.65264346]
[1767211288749,119.6,124.63,124.58,6.25e-06]
[1767211288750,0.72160866,124.61,124.58,6.25e-06]
[1767211290367,28.40899117,124.64,124.53,14.68]
[1767211290368,0.92160866,124.66,124.6,5.03905875]
[1767211290551,0.92160866,124.66,124.63,3.22012696]
[1767211291067,0.2,124.66,124.64,3.22012696]
[1767211291549,0.2,124.66,124.63,0.65264346]
[1767211291861,0.2,124.66,124.64,3.22012696]
[1767211292356,0.92160866,124.66,124.63,3.87277042]
[1767211292557,0.92160866,124.66,124.64,3.22012696]
[1767211292886,0.92160866,124.66,124.63,3.87277042]
[1767211294256,0.2,124.66,124.64,5.47e-06]
[1767211297164,0.92160866,124.66,124.63,3.50426045]
[1767211299057,0.92160866,124.66,124.63,3.22012696]
[1767211300249,0.72160866,124.65,124.62,3.22012696]
[1767211300575,0.72160866,124.64,124.61,3.22012696]
[1767211301873,0.72160866,124.63,124.58,0.28413349]
[1767211302060,0.72160866,124.63,124.6,3.22012696]
[1767211302857,0.72160866,124.63,124.59,0.28413349]
[1767211303058,0.72160866,124.63,124.6,3.22012696]
[1767211305762,0.72160866,124.63,124.59,3.50426045]
[1767211307918,0.72160866,124.61,124.56,0.28413349]
[1767211308082,0.72160866,124.6,124.56,0.28413349]
[1767211308382,0.72160866,124.6,124.56,3.50426045]
[1767211308570,0.72160866,124.6,124.56,0.28413349]
[1767211308978,0.72160866,124.59,124.55,0.28413349]
[1767211309372,0.72160866,124.59,124.55,3.50426045]
[1767211309764,0.72160866,124.58,124.54,17.88012696]
[1767211310083,0.72160866,124.58,124.54,18.16426045]
[1767211310783,0.72160866,124.58,124.55,3.22012696]
[1767211314890,0.72160866,124.58,124.55,3.50426045]
[1767211315587,0.72160866,124.58,124.55,0.28413349]
[1767211316485,0.72160866,124.58,124.55,3.50426045]
[1767211317502,0.72160866,124.58,124.55,0.28413349]
[1767211320594,3.22012696,124.6,124.56,3.50426045]
[1767211320768,0.71004471,124.61,124.57,3.50426045]
[1767211321277,0.71004471,124.61,124.57,0.28413349]
[1767211321500,0.71004471,124.61,124.57,3.50426045]
[1767211321688,0.71004471,124.61,124.57,0.28413349]
[1767211321890,0.71004471,124.61,124.57,3.22012696]
[1767211322475,0.71004471,124.6,124.56,3.50426045]
[1767211322681,0.71004471,124.57,124.53,3.22012696]
[1767211322910,0.71004471,124.56,124.52,17.90012696]
[1767211323080,0.71004471,124.56,124.52,18.18426045]
[1767211323284,0.71004471,124.56,124.52,3.50426045]
[1767211324686,0.71004471,124.56,124.53,0.28413349]
[1767211326401,0.71004471,124.56,124.53,3.50426045]
[1767211327909,0.71004471,124.56,124.53,0.28413349]
[1767211332004,0.71004471,124.56,124.52,3.50426045]
[1767211333381,3.22012696,124.53,124.46,0.28413349]
[1767211333584,0.71004471,124.5,124.46,0.28413349]
[1767211334108,0.71004471,124.5,124.46,3.50426045]
[1767211334317,3.93017167,124.5,124.46,0.28413349]
[1767211334616,0.71004471,124.5,124.46,3.50426045]
[1767211334834,29.68,124.54,124.45,21.82347516]
[1767211334835,3.93017167,124.49,124.45,21.82347516]
[1767211335125,0.71004471,124.49,124.46,0.28413349]
[1767211335695,0.71004471,124.53,124.49,0.28413349]
[1767211335991,0.71004471,124.53,124.5,3.22012696]
[1767211336192,14.68,124.55,124.5,3.50426045]
[1767211336193,0.71004471,124.54,124.5,3.50426045]
[1767211336416,3.93017167,124.56,124.52,3.22012696]
[1767211336596,0.71004471,124.55,124.52,3.22012696]
[1767211336793,0.71004471,124.57,124.54,3.22012696]
[1767211337216,0.71004471,124.57,124.53,3.22012696]
[1767211338528,0.71004471,124.57,124.52,18.18426045]
[1767211339622,0.71004471,124.57,124.53,3.50426045]
[1767211344321,0.71004471,124.57,124.54,3.50426045]
[1767211344525,0.69813929,124.58,124.55,3.22012696]
[1767211345225,0.69813929,124.58,124.55,3.50426045]
[1767211345402,0.69813929,124.58,124.55,3.22012696]
[1767211345723,0.69813929,124.58,124.56,3.22012696]
[1767211346122,0.69813929,124.6,124.56,3.22012696]
[1767211346828,0.69813929,124.6,124.57,3.50426045]
[1767211347211,0.69813929,124.6,124.57,3.22012696]
[1767211347610,0.69813929,124.6,124.56,3.22012696]
[1767211349917,0.69813929,124.6,124.55,0.28413349]
[1767211350227,0.69813929,124.59,124.55,3.22012696]
[1767211350429,0.69813929,124.59,124.57,3.22012696]
[1767211350727,0.69813929,124.6,124.57,5.03588737]
[1767211351305,0.69813929,124.6,124.56,0.28413349]
[1767211351514,19.71588737,124.63,124.58,5.03588737]
[1767211351825,0.69813929,124.62,124.58,5.03588737]
[1767211352204,0.69813929,124.62,124.59,5.03588737]
[1767211352634,0.69813929,124.62,124.58,5.03588737]
[1767211353616,0.69813929,124.62,124.54,14.68]
[1767211353816,0.69813929,124.62,124.56,5.03588737]
[1767211353817,0.69813929,124.59,124.56,5.03588737]
[1767211354421,0.69813929,124.59,124.55,0.28413349]
[1767211354620,0.69813929,124.59,124.56,5.03588737]
[1767211356834,0.69813929,124.59,124.55,0.28413349]
[1767211357026,0.69813929,124.59,124.56,5.03588737]
[1767211358814,5.03588737,124.59,124.55,5.32002086]
[1767211359142,0.69813929,124.58,124.55,5.32002086]
[1767211360316,0.69813929,124.58,124.55,0.28413349]
[1767211360516,0.69813929,124.58,124.55,5.03588737]
[1767211363538,0.69813929,124.58,124.56,5.03588737]
[1767211368742,0.69813929,124.58,124.54,0.28413349]
[1767211368942,0.69813929,124.58,124.55,5.03588737]
[1767211369125,0.69813929,124.58,124.53,14.96413349]
[1767211369322,0.69813929,124.58,124.54,5.03588737]
[1767211369522,0.69813929,124.58,124.55,5.03588737]
[1767211369935,0.69813929,124.58,124.55,5.32002086]
[1767211370141,0.69813929,124.58,124.56,5.03588737]
[1767211371649,0.69813929,124.58,124.55,5.32002086]
[1767211371850,0.69813929,124.58,124.55,5.03588737]
[1767211373447,5.72749365,124.6,124.56,0.28413349]
[1767211373829,0.69160628,124.59,124.56,0.28413349]
[1767211374029,0.69160628,124.59,124.55,5.32002086]
[1767211375650,0.69160628,124.59,124.55,0.28413349]
[1767211375847,0.69160628,124.59,124.55,5.32002086]
[1767211380249,5.03588737,124.6,124.52,8.0305298]
[1767211380250,5.03588737,124.58,124.52,0.28413349]
[1767211380451,0.69160628,124.57,124.52,5.32002086]
[1767211380750,0.69160628,124.56,124.52,5.32002086]
[1767211381232,0.69160628,124.56,124.52,5.03588737]
[1767211381438,0.57118239,124.56,124.52,5.03588737]
[1767211381755,0.57118239,124.56,124.48,8.99246805]
[1767211381756,5.03588737,124.56,124.48,8.99246805]
[1767211381963,5.03588737,124.54,124.49,0.40455738]
[1767211382129,5.03588737,124.53,124.49,0.40455738]
[1767211382449,5.03588737,124.54,124.49,0.40455738]
[1767211382753,5.03588737,124.53,124.49,0.40455738]
[1767211383249,5.03588737,124.53,124.48,5.44044475]
[1767211383431,0.69160628,124.52,124.48,5.44044475]
[1767211384332,0.69160628,124.52,124.48,0.40455738]
[1767211384531,0.69160628,124.52,124.48,5.44044475]
[1767211387852,5.72749365,124.52,124.48,0.40455738]
[1767211391451,0.69160628,124.52,124.48,0.40455738]
[1767211391654,5.72749365,124.52,124.48,0.40455738]
[1767211391854,8.02914251,124.55,124.48,5.44044475]
[1767211392067,29.68,124.57,124.5,0.40455738]
[1767211392068,0.69160628,124.53,124.5,0.40455738]
[1767211392639,0.69160628,124.54,124.51,0.40455738]
[1767211395535,5.03588737,124.55,124.51,0.40455738]
[1767211395742,5.72749365,124.56,124.52,0.40455738]
[1767211396146,5.03588737,124.56,124.52,0.40455738]
[1767211396358,0.69160628,124.55,124.52,0.40455738]
[1767211396861,5.72749365,124.55,124.51,0.40455738]
[1767211397058,5.72749365,124.55,124.51,5.44044475]
[1767211397244,5.03588737,124.55,124.51,0.40455738]
[1767211397562,0.69160628,124.54,124.51,0.40455738]
[1767211398138,0.69160628,124.54,124.51,5.44044475]
[1767211398865,0.69160628,124.53,124.49,5.03588737]
[1767211399046,0.69160628,124.53,124.5,0.40455738]
[1767211399246,5.72749365,124.54,124.5,5.44044475]
[1767211400254,5.72749365,124.54,124.51,0.40455738]
[1767211400557,0.69160628,124.54,124.51,0.40455738]
[1767211400858,5.72749365,124.54,124.51,0.40455738]
[1767211401063,0.69160628,124.54,124.51,0.40455738]
[1767211406456,0.69160628,124.54,124.51,5.44044475]
[1767211409251,0.69160628,124.54,124.51,0.40455738]
[1767211410377,5.72749365,124.54,124.5,14.68]
[1767211410678,0.65465891,124.52,124.5,14.68]
[1767211412176,0.65465891,124.51,124.47,20.12044475]
[1767211412372,0.65465891,124.51,124.48,0.40455738]
[1767211413581,0.53418666,124.51,124.48,0.40455738]
[1767211416472,0.53418666,124.51,124.48,3.63232854]
[1767211417779,18.22777116,124.56,124.46,0.52502963]
[1767211417780,3.22777116,124.5,124.46,0.52502963]
[1767211417983,0.65465891,124.49,124.47,14.68]
[1767211418278,3.88243007,124.5,124.47,15.20502963]
[1767211418481,0.65465891,124.49,124.46,0.52502963]
[1767211418680,0.65465891,124.49,124.46,15.20502963]
[1767211419372,0.65465891,124.53,124.47,0.52502963]
[1767211419554,3.88243007,124.51,124.47,0.52502963]
[1767211420082,3.22777116,124.51,124.47,0.52502963]
[1767211420270,0.65465891,124.5,124.47,0.52502963]
[1767211421667,0.65465891,124.49,124.46,15.20502963]
[1767211421880,0.65465891,124.49,124.46,18.43280079]
[1767211422579,3.88243007,124.5,124.47,0.52502963]
[1767211425588,3.88243007,124.5,124.47,15.20502963]
[1767211430670,0.65465891,124.5,124.47,15.20502963]
[1767211433689,3.89754881,124.51,124.48,0.52502963]
[1767211434189,0.66977765,124.51,124.48,0.52502963]
[1767211434375,3.89754881,124.51,124.48,0.52502963]
[1767211435184,3.22777116,124.51,124.47,17.90777116]
[1767211435390,0.66977765,124.5,124.47,18.43280079]
[1767211436296,0.66977765,124.5,124.47,15.20502963]
[1767211436866,0.66977765,124.5,124.47,18.43280079]
[1767211438091,0.66977765,124.5,124.47,17.90777116]
[1767211438280,0.66977765,124.5,124.48,0.52502963]
[1767211438790,0.66977765,124.5,124.46,3.75280079]
[1767211438980,0.66977765,124.5,124.47,14.68]
[1767211439897,127.30904853,124.55,124.47,17.90777116]
[1767211440081,0.66977765,124.53,124.49,3.75280079]
[1767211440282,0.66977765,124.53,124.49,18.43280079]
[1767211440482,0.66977765,124.53,124.49,15.20502963]
[1767211441086,3.22777116,124.52,124.49,0.52502963]
[1767211441293,0.66977765,124.51,124.49,14.68]
[1767211441681,3.89754881,124.5,124.49,14.68]
[1767211441882,0.66977765,124.5,124.49,14.68]
[1767211443092,3.89754881,124.5,124.49,14.68]
[1767211443398,3.89754881,124.5,124.46,0.52502963]
[1767211443697,3.89754881,124.5,124.47,15.20502963]
[1767211444478,3.22777116,124.49,124.47,15.20502963]
[1767211444888,3.22777116,124.49,124.47,14.68]
[1767211445092,3.89754881,124.49,124.47,14.68]
[1767211446192,3.89754881,124.48,124.45,7.3843713]
[1767211446394,3.89754881,124.48,124.46,14.68]
[1767211446791,3.89754881,124.48,124.45,22.0643713]
[1767211446999,0.66977765,124.48,124.45,22.0643713]
[1767211447183,3.89754881,124.48,124.45,22.0643713]
[1767211457316,0.66977765,124.48,124.45,22.0643713]
[1767211457515,0.66977765,124.48,124.45,25.29214246]
[1767211457715,0.66977765,124.52,124.48,0.52502963]
[1767211458037,3.89754881,124.51,124.48,15.20502963]
[1767211458391,0.66977765,124.51,124.48,15.20502963]
[1767211458908,3.89754881,124.51,124.49,14.68]
[1767211461121,3.89754881,124.51,124.48,0.52502963]
[1767211463697,0.66977765,124.51,124.48,0.52502963]
[1767211464029,3.89754881,124.51,124.48,0.52502963]
[1767211465025,3.89754881,124.51,124.47,3.22777116]
[1767211465026,3.22777116,124.51,124.47,3.22777116]
[1767211465205,0.69517935,124.5,124.48,14.68]
[1767211473240,3.92295051,124.5,124.48,14.68]
[1767211474515,5.0443091,124.5,124.46,14.68]
[1767211474823,5.0443091,124.48,124.46,14.68]
[1767211475035,0.69517935,124.47,124.46,14.68]
[1767211476635,5.73948845,124.47,124.45,6.85934167]
[1767211476931,0.69517935,124.46,124.45,6.85934167]
[1767211477336,0.69517935,124.46,124.45,21.53934167]
[1767211477539,0.57465871,124.46,124.45,21.53934167]
[1767211480534,5.61896781,124.46,124.45,21.53934167]
[1767211481548,5.61896781,124.46,124.45,6.85934167]
[1767211482552,5.61896781,124.46,124.44,14.78]
[1767211483249,5.0443091,124.46,124.44,14.78]
[1767211483543,5.73948845,124.45,124.42,0.74555027]
[1767211483748,5.73948845,124.45,124.36,0.1]
[1767211483749,0.69517935,124.42,124.37,0.1]
[1767211483936,2e-08,124.38,124.37,0.1]
[1767211484130,0.69517935,124.39,124.37,0.1]
[1767211484346,5.0443091,124.38,124.35,0.1]
[1767211484644,0.69517935,124.37,124.35,0.1]
[1767211484847,0.69517935,124.38,124.35,8.81385202]
[1767211486250,0.69517935,124.38,124.35,13.85834229]
[1767211486438,0.69517935,124.4,124.37,5.71662401]
[1767211486642,5.0443091,124.42,124.38,5.71662401]
[1767211486947,0.69517935,124.41,124.38,5.71662401]
[1767211489153,0.69517935,124.41,124.38,13.75644588]
[1767211489353,0.69517935,124.41,124.39,5.0443091]
[1767211489857,0.69517935,124.43,124.39,13.75579147]
[1767211490962,0.69517935,124.43,124.4,5.0443091]
[1767211491259,0.69517935,124.43,124.39,8.71148237]
[1767211491445,0.69517935,124.43,124.4,5.0443091]
[1767211491630,0.69517935,124.43,124.39,5.71662401]
[1767211492035,0.69517935,124.43,124.4,5.0443091]
[1767211492237,0.70020107,124.44,124.41,5.0443091]
[1767211493466,0.70020107,124.44,124.4,5.71463007]
[1767211494665,15.0,124.47,124.34,0.101979]
[1767211494967,0.70020107,124.41,124.38,5.71463007]
[1767211495360,0.70020107,124.41,124.38,0.67032097]
[1767211496445,5.74451017,124.41,124.38,0.67032097]
[1767211497844,0.70020107,124.41,124.38,0.67032097]
[1767211498044,8.03615274,124.44,124.36,15.37032097]
[1767211498045,0.70020107,124.39,124.36,15.37032097]
[1767211498350,5.74451017,124.4,124.36,0.67032097]
[1767211498570,5.74451017,124.4,124.37,0.67032097]
[1767211498956,0.70020107,124.4,124.37,0.67032097]
[1767211499270,0.70020107,124.42,124.39,0.67032097]
[1767211499645,0.70020107,124.42,124.38,5.71463007]
[1767211500079,5.74451017,124.42,124.38,0.67032097]
[1767211500277,0.70020107,124.41,124.38,5.71463007]
[1767211502370,5.0443091,124.43,124.39,0.67032097]
[1767211502579,0.70020107,124.42,124.39,0.67032097]
[1767211502776,0.70020107,124.42,124.38,5.71463007]
[1767211503275,0.70020107,124.42,124.39,5.0443091]
[1767211503456,0.70020107,124.43,124.4,0.67032097]
[1767211503657,0.70020107,124.45,124.41,5.71463007]
[1767211504381,5.74451017,124.45,124.41,5.71463007]
[1767211505156,0.70020107,124.44,124.41,5.71463007]
[1767211505379,0.70020107,124.44,124.41,0.67032097]
[1767211506190,0.70020107,124.45,124.41,5.0443091]
[1767211506475,0.70020107,124.45,124.42,0.67032097]
[1767211506879,5.0443091,124.46,124.41,5.0443091]
[1767211507083,5.74451017,124.46,124.42,0.67032097]
[1767211508367,5.74451017,124.46,124.43,0.67032097]
[1767211511294,5.74451017,124.46,124.42,0.67032097]
[1767211511791,0.70020107,124.44,124.4,0.67032097]
[1767211511965,5.0443091,124.44,124.38,8.03959495]
[1767211512163,0.70020107,124.43,124.39,20.39463007]
[1767211512364,0.70020107,124.43,124.4,0.67032097]
[1767211512880,5.74451017,124.44,124.4,0.67032097]
[1767211513461,0.70020107,124.44,124.41,0.67032097]
[1767211514064,5.74451017,124.44,124.41,0.67032097]
[1767211515060,0.70020107,124.44,124.41,0.67032097]
[1767211515981,5.74451017,124.44,124.41,0.67032097]
[1767211516162,0.70020107,124.44,124.41,0.67032097]
[1767211522883,0.70020107,124.44,124.4,5.72205517]
[1767211523795,5.0443091,124.41,124.36,8.7185897]
[1767211524092,19.7243091,124.44,124.37,0.67774607]
[1767211524093,0.71359303,124.4,124.37,0.67774607]
[1767211524592,0.71359303,124.4,124.37,5.72205517]
[1767211524774,0.71359303,124.4,124.37,0.67774607]
[1767211526204,5.75790213,124.4,124.37,0.67774607]
[1767211526371,8.0369493,124.43,124.35,0.1]
[1767211526372,0.71359303,124.37,124.35,0.1]
[1767211526568,5.75790213,124.36,124.34,0.101979]
[1767211526894,0.71359303,124.35,124.34,0.101979]
[1767211527100,5.75790213,124.35,124.34,0.101979]
[1767211527302,0.71359303,124.34,124.26,0.67774607]
[1767211527473,0.71359303,124.3,124.26,0.67774607]
[1767211527667,0.71359303,124.34,124.29,5.0443091]
[1767211527970,0.71359303,124.34,124.3,0.67774607]
[1767211528167,0.71359303,124.34,124.31,5.0443091]
[1767211528369,20.09739666,124.4,124.3,0.67774607]
[1767211528590,0.71359303,124.35,124.32,5.0443091]
[1767211528772,0.71359303,124.35,124.31,0.67774607]
[1767211528976,0.71359303,124.35,124.31,5.72205517]
[1767211529182,5.0443091,124.38,124.34,5.72205517]
[1767211529490,14.7,124.39,124.32,0.67774607]
[1767211529491,5.0443091,124.36,124.32,0.67774607]
[1767211529703,5.0443091,124.36,124.32,5.72205517]
[1767211529890,8.03749695,124.42,124.35,5.72205517]
[1767211530070,5.0443091,124.4,124.37,0.67774607]
[1767211530397,20.0443091,124.44,124.35,5.72205517]
[1767211530398,5.0443091,124.39,124.35,5.72205517]
[1767211530571,8.03806601,124.41,124.35,5.72205517]
[1767211530777,5.0443091,124.39,124.35,5.72205517]
[1767211531295,0.71359303,124.39,124.36,5.72205517]
[1767211531498,0.71359303,124.39,124.36,0.67774607]
[1767211531986,5.75790213,124.39,124.35,5.0443091]
[1767211532178,5.75790213,124.39,124.35,0.67774607]
[1767211532784,0.71359303,124.39,124.35,5.72205517]
[1767211533085,5.75790213,124.39,124.35,5.72205517]
[1767211533681,5.0443091,124.38,124.35,0.67774607]
[1767211533882,0.71359303,124.39,124.35,0.67774607]
[1767211534089,5.0443091,124.38,124.35,0.67774607]
[1767211534598,3.9480238,124.39,124.35,0.67774607]
[1767211535888,0.71359303,124.39,124.35,3.91217684]
[1767211536094,0.71359303,124.41,124.38,0.67774607]
[1767211536496,3.9480238,124.41,124.38,0.67774607]
[1767211536803,3.9480238,124.41,124.32,3.23443077]
[1767211536804,0.71359303,124.38,124.33,0.67774607]
[1767211536987,3.9480238,124.38,124.34,0.67774607]
[1767211537497,3.23443077,124.37,124.34,0.67774607]
[1767211537801,3.9480238,124.37,124.34,0.67774607]
[1767211537997,0.71359303,124.37,124.34,0.67774607]
[1767211539284,3.23443077,124.38,124.34,0.67774607]
[1767211539486,3.9480238,124.38,124.34,0.67774607]
[1767211539703,0.71359303,124.38,124.34,0.67774607]
[1767211539885,3.9480238,124.38,124.34,0.67774607]
[1767211540080,3.9480238,124.37,124.34,0.67774607]
[1767211540286,3.82741594,124.37,124.34,0.67774607]
[1767211540485,3.82741594,124.37,124.32,3.91217684]
[1767211540681,3.23443077,124.36,124.33,0.67774607]
[1767211541688,3.9480238,124.36,124.33,0.67774607]
[1767211542182,0.71359303,124.37,124.33,0.67774607]
[1767211542384,3.9480238,124.37,124.33,0.67774607]
[1767211545286,3.23443077,124.36,124.33,0.67774607]
[1767211545600,3.9480238,124.37,124.33,0.67774607]
[1767211546909,0.71359303,124.37,124.33,0.67774607]
[1767211547107,3.9480238,124.37,124.33,3.91217684]
[1767211547403,3.9480238,124.37,124.33,0.67774607]
[1767211548202,0.71359303,124.37,124.33,3.23443077]
[1767211548383,0.71359303,124.37,124.34,0.67774607]
[1767211548996,3.9480238,124.37,124.34,0.67774607]
[1767211551324,3.9480238,124.37,124.3,0.69626762]
[1767211551325,3.23443077,124.35,124.3,0.69626762]
[1767211551490,3.23443077,124.35,124.31,0.69626762]
[1767211551491,0.67083358,124.35,124.31,0.69626762]
[1767211551688,0.67083358,124.35,124.3,3.23443077]
[1767211551689,0.67083358,124.37,124.3,3.23443077]
[1767211552011,0.67083358,124.34,124.3,3.23443077]
[1767211552511,0.67083358,124.34,124.31,3.23443077]
[1767211552723,22.74032707,124.38,124.28,8.35013837]
[1767211552724,3.90526435,124.37,124.32,3.23443077]
[1767211553032,3.90526435,124.39,124.34,3.23443077]
[1767211553188,14.7,124.4,124.31,42.85525565]
[1767211553189,3.23443077,124.38,124.31,42.85525565]
[1767211553388,3.90526435,124.38,124.34,3.23443077]
[1767211553694,3.90526435,124.38,124.34,0.69626762]
[1767211554003,3.90526435,124.37,124.33,3.23443077]
[1767211554198,3.90526435,124.37,124.33,3.93069839]
[1767211554395,3.90526435,124.37,124.33,0.69626762]
[1767211554599,3.90526435,124.37,124.33,3.93069839]
[1767211554800,3.90526435,124.37,124.34,0.69626762]
[1767211554801,0.67083358,124.37,124.34,0.69626762]
[1767211556205,0.67083358,124.37,124.34,3.93069839]
[1767211557314,14.7,124.4,124.34,3.23443077]
[1767211557532,14.7,124.4,124.32,8.04340946]
[1767211557533,0.67083358,124.39,124.36,3.23443077]
[1767211557695,0.67083358,124.39,124.36,3.93069839]
[1767211557895,0.67083358,124.39,124.36,0.69626762]
[1767211558096,3.90526435,124.39,124.36,0.69626762]
[1767211558438,0.67083358,124.38,124.35,0.69626762]
[1767211559021,0.67083358,124.38,124.35,3.93069839]
[1767211560637,3.90526435,124.4,124.36,3.93069839]
[1767211561006,0.67083358,124.4,124.37,3.23443077]
[1767211561321,0.67083358,124.4,124.36,3.93069839]
[1767211561516,3.23443077,124.4,124.36,3.93069839]
[1767211561727,0.67083358,124.39,124.36,0.69626762]
[1767211562506,3.23443077,124.38,124.31,0.69626762]
[1767211562732,0.67083358,124.36,124.33,0.69626762]
[1767211564927,3.90526435,124.37,124.33,3.93069839]
[1767211565516,0.67083358,124.37,124.33,3.93069839]
[1767211567619,0.67083358,124.36,124.33,3.93069839]
[1767211568233,3.90526435,124.37,124.33,3.93069839]
[1767211568816,0.67083358,124.36,124.33,3.93069839]
[1767211569938,3.90526435,124.37,124.33,3.93069839]
[1767211571014,0.67083358,124.37,124.33,3.93069839]
[1767211571219,3.90526435,124.37,124.33,3.93069839]
[1767211571647,3.90526435,124.35,124.31,18.63069839]
[1767211571930,0.67083358,124.34,124.31,3.93069839]
[1767211572139,35.09845331,124.39,124.31,3.93069839]
[1767211572140,0.67083358,124.35,124.32,0.69626762]
[1767211572640,0.67083358,124.34,124.31,0.69626762]
[1767211572839,15.0,124.39,124.31,3.23443077]
[1767211573021,3.23443077,124.37,124.33,0.69626762]
[1767211573341,0.67083358,124.36,124.33,0.69626762]
[1767211574229,0.67083358,124.36,124.33,3.93069839]
[1767211576338,3.23443077,124.37,124.32,3.93069839]
[1767211576746,3.23443077,124.37,124.33,0.69626762]
[1767211577553,3.23443077,124.37,124.34,0.69626762]
[1767211578434,3.90526435,124.37,124.34,0.69626762]
[1767211579249,0.67083358,124.37,124.34,0.69626762]
[1767211579453,3.90526435,124.37,124.34,0.69626762]
[1767211581550,3.23443077,124.36,124.34,0.69626762]
[1767211582453,3.23443077,124.36,124.32,0.70766151]
[1767211582632,0.68750031,124.35,124.32,0.70766151]
[1767211582832,3.92193108,124.34,124.3,0.70766151]
[1767211583036,3.23443077,124.33,124.3,0.70766151]
[1767211583548,3.92193108,124.33,124.3,0.70766151]
[1767211584849,3.92193108,124.32,124.29,0.70766151]
[1767211586730,3.23443077,124.31,124.28,0.70766151]
[1767211587145,3.92193108,124.32,124.28,3.94209228]
[1767211587830,0.68750031,124.32,124.28,3.94209228]
[1767211588651,3.92193108,124.32,124.28,3.94209228]
[1767211588847,0.68750031,124.32,124.28,3.94209228]
[1767211589046,3.92193108,124.32,124.28,3.94209228]
[1767211589657,8.04284906,124.34,124.3,0.70766151]
[1767211589658,3.23443077,124.33,124.3,0.70766151]
[1767211589855,0.68750031,124.34,124.31,0.70766151]
[1767211591340,3.23443077,124.34,124.3,3.94209228]
[1767211591546,3.92193108,124.34,124.3,3.94209228]
[1767211591860,0.68750031,124.34,124.3,3.94209228]
[1767211592157,3.92193108,124.34,124.31,0.70766151]
[1767211593958,0.68750031,124.34,124.31,0.70766151]
[1767211594154,3.92193108,124.34,124.31,0.70766151]
[1767211594553,5.74555591,124.34,124.31,0.70766151]
[1767211595855,0.68750031,124.33,124.28,0.70766151]
[1767211596058,0.68750031,124.33,124.3,0.70766151]
[1767211596860,0.68750031,124.32,124.29,0.70766151]
[1767211597352,5.0580556,124.32,124.29,0.70766151]
[1767211597561,0.68750031,124.31,124.28,5.0580556]
[1767211597766,8.04052424,124.37,124.31,0.70766151]
[1767211597954,5.74555591,124.35,124.32,0.70766151]
[1767211598463,0.68750031,124.35,124.32,0.70766151]
[1767211598642,20.44555591,124.37,124.33,0.70766151]
[1767211598844,5.74555591,124.36,124.33,0.70766151]
[1767211599248,5.74555591,124.36,124.32,5.76571711]
[1767211599550,5.0580556,124.35,124.3,5.0580556]
[1767211599756,5.74555591,124.34,124.3,5.76571711]
[1767211599936,5.74555591,124.34,124.31,0.70766151]
[1767211600257,0.68750031,124.34,124.31,0.70766151]
[1767211600933,0.68750031,124.34,124.31,5.76571711]
[1767211601133,5.0580556,124.36,124.32,0.70766151]
[1767211601341,0.68750031,124.35,124.32,0.70766151]
[1767211601571,0.68750031,124.35,124.31,5.76571711]
[1767211601747,5.74555591,124.35,124.31,5.76571711]
[1767211601950,0.68750031,124.35,124.31,5.76571711]
[1767211602672,5.74555591,124.35,124.31,5.76571711]
[1767211603763,5.0580556,124.35,124.31,0.70766151]
[1767211603963,5.74555591,124.35,124.31,5.76571711]
[1767211605265,0.68750031,124.35,124.31,5.76571711]
[1767211606353,0.68750031,124.35,124.31,5.0580556]
[1767211606558,0.68750031,124.35,124.32,0.70766151]
[1767211608762,0.68750031,124.36,124.31,0.70766151]
[1767211608965,0.68750031,124.36,124.32,5.76571711]
[1767211609462,0.68750031,124.36,124.33,0.70766151]
[1767211609667,20.44555591,124.37,124.34,0.70766151]
[1767211610048,0.71154596,124.36,124.33,0.66110705]
[1767211612074,20.46960156,124.37,124.33,0.66110705]
[1767211612771,0.71154596,124.35,124.31,5.0580556]
[1767211612949,0.71154596,124.35,124.32,0.66110705]
[1767211613267,5.0580556,124.36,124.33,0.66110705]
[1767211613268,5.76960156,124.36,124.33,0.66110705]
[1767211619075,5.76960156,124.35,124.31,0.66110705]
[1767211621179,5.76960156,124.33,124.28,0.66110705]
[1767211621381,5.76960156,124.32,124.27,5.71916265]
[1767211621593,5.76960156,124.32,124.29,0.66110705]
[1767211622653,5.76960156,124.31,124.28,0.66110705]
[1767211623050,0.71154596,124.29,124.25,0.66110705]
[1767211623255,0.71154596,124.29,124.26,0.66110705]
[1767211623683,5.76960156,124.3,124.26,0.66110705]
[1767211623987,5.76960156,124.3,124.27,0.66110705]
[1767211624187,20.46960156,124.32,124.28,5.71916265]
[1767211624570,20.46960156,124.32,124.28,0.66110705]
[1767211625204,0.71154596,124.32,124.28,0.66110705]
[1767211625369,5.0580556,124.33,124.3,0.66110705]
[1767211625689,5.76960156,124.32,124.26,0.66110705]
[1767211625890,22.74212398,124.35,124.28,0.66110705]